fUSD/lending_fUSD_20241002
["ID","MTS","AMOUNT","RATE_DAILY","PERIOD"]
[339677768,1727848239961,-1533.73572296,0.0002985,15]
[339677769,1727848239971,-217.0,0.0002986,2]
[339677770,1727848239981,-203.25849832,0.00029861,2]
[339677771,1727848239990,-4632.9844,0.0002987,2]
[339677772,1727848239999,-7005.3145,0.00029879,2]
[339677773,1727848240008,-166.6455742,0.0002988,2]
[339677774,1727848240018,-1000.0,0.0002988,2]
[339677775,1727848240027,-150.0,0.00029883,7]
[339677776,1727848240037,-261.39469872,0.000299,2]
[339677777,1727848240046,-3002.01301219,0.000299,30]
[339677778,1727848240055,-1540.0,0.000299,30]
[339677779,1727848240065,-15407.6537337,0.000299,2]
[339677780,1727848240075,-1700.0,0.000299,10]
[339677781,1727848240084,-452.92011672,0.000299,2]
[339677782,1727848240093,-296.50091076,0.000299,5]
[339677783,1727848240102,-206.05112898,0.000299,2]
[339677784,1727848240111,-150.0,0.0002991,7]
[339677785,1727848240120,-153.41,0.0002993,2]
[339677786,1727848240129,-101101.96678138,0.0002994,15]
[339677833,1727848243162,-1586.6663921,0.0002994,15]
[339677852,1727848245947,-2364.23036804,0.00024363,2]
[339677853,1727848245956,-19257.30551598,0.0002994,15]
[339677854,1727848482020,160.91,0.00010925,2]
[339677855,1727848667920,570.471493,0.00022,120]
[339677862,1727848781311,788.07678936,0.000109,2]
[339677864,1727848905210,525.38452624,0.000109,2]
[339677865,1727849025522,350.25635082,0.000109,2]
[339677866,1727849145886,233.50423388,0.000109,2]
[339677868,1727849267385,155.66948926,0.000109,2]
[339677891,1727849431908,-172.73,0.00010959,2]
[339677892,1727849431917,-150.16,0.00010959,2]
[339677893,1727849431926,-250.0,0.00011,2]
[339677894,1727849431936,-177.40224964,0.00011175,2]
[339677895,1727849431946,-315.94,0.000128,2]
[339677896,1727849431955,-1009.62,0.000128,2]
[339677897,1727849431964,-1154.39060503,0.000128,2]
[339677898,1727849431973,-300.0,0.00013,2]
[339677899,1727849431983,-350.0,0.00015,2]
[339677900,1727849431992,-246.0,0.00019451,2]
[339677901,1727849432001,-150.0,0.00021682,2]
[339677902,1727849432011,-1907.6503,0.00023379,2]
[339677903,1727849432020,-7606.70165712,0.00023479,2]
[339677904,1727849432031,-393.9067626,0.00023479,2]
[339677905,1727849432064,-707.07731665,0.00023479,2]
[339677906,1727849432075,-629.99914214,0.00023479,2]
[339677907,1727849432115,-371.6925449,0.00023479,2]
[339677908,1727849432184,-290.62257659,0.00023479,2]
[339677909,1727849432194,-177.11331707,0.00023653,2]
[339677910,1727849432205,-451.79668293,0.00023653,2]
[339677911,1727849432215,-448.0,0.00023653,2]
[339677912,1727849432224,-1268.765,0.00023653,2]
[339677913,1727849432233,-1296.0,0.00023653,2]
[339677914,1727849432242,-810.0,0.00023653,2]
[339677915,1727849432251,-558.0,0.00023653,2]
[339677916,1727849432261,-554.0,0.00023653,2]
[339677918,1727849432270,-1904.0,0.00023653,2]
[339677920,1727849432279,-1911.0,0.00023653,2]
[339677922,1727849432288,-807.0,0.00023653,2]
[339677924,1727849432296,-1496.719,0.00023653,2]
[339677926,1727849432308,-547.59,0.00024248,2]
[339677929,1727849432317,-200.0,0.00024346,2]
[339677932,1727849432326,-329.282,0.0002587,11]
[339677934,1727849432335,-163.614,0.0002587,11]
[339677936,1727849432344,-250.0,0.00025897,2]
[339677938,1727849432354,-196.975783,0.00025985,2]
[339677939,1727849432364,-1092.232473,0.00025985,2]
[339677940,1727849432373,-160.369445,0.00025985,2]
[339677941,1727849432384,-194.93,0.00026136,120]
[339677942,1727849432393,-1000.0,0.00026237,2]
[339677943,1727849432402,-1092.232473,0.0002631,2]
[339677944,1727849432411,-547.59,0.00026511,2]
[339677945,1727849432421,-1000.0,0.00026555,2]
[339677946,1727849432430,-1092.232473,0.00026635,2]
[339677947,1727849432440,-573.62,0.00026832,2]
[339677948,1727849432450,-167.13,0.00026924,2]
[339677949,1727849432460,-18135.4,0.00026929,2]
[339677950,1727849432469,-1092.232473,0.00026959,2]
[339677951,1727849432479,-250.0,0.00027059,2]
[339677952,1727849432488,-250.0,0.00027071,2]
[339677953,1727849432497,-569.00580567,0.00027276,2]
[339677954,1727849432507,-1092.232473,0.00027284,2]
[339677955,1727849432516,-196.975783,0.00027284,2]
[339677956,1727849432525,-160.369445,0.00027284,2]
[339677957,1727849432534,-1000.0,0.00028,120]
[339677958,1727849432543,-573.62,0.00028173,2]
[339677959,1727849432559,-4269.22,0.00028351,10]
[339677960,1727849432568,-19.46249503,0.00028694,2]
[339677961,1727849432580,-1131.14750497,0.00028694,2]
[339677962,1727849432589,-69.65253483,0.00028694,4]
[339677963,1727849432604,-407.2,0.00028694,4]
[339677964,1727849437915,-4773.08338655,0.00023479,2]
[339677965,1727849437925,-532.27806083,0.00028694,4]
[339677966,1727849437936,-141.47940434,0.00028694,4]
[339677967,1727849437945,-158.98059564,0.00028694,6]
[339677968,1727849437956,-569.5689955,0.00028694,6]
[339677969,1727849437967,-422.06040886,0.00028694,6]
[339677970,1727849437976,-1150.61,0.00028694,8]
[339677971,1727849437985,-1124.35784626,0.00028694,10]
[339677972,1727849437996,-26.25215374,0.00028694,10]
[339677973,1727849438005,-537.13002854,0.00028694,12]
[339677974,1727849438027,-613.47997146,0.00028694,12]
[339677975,1727849438036,-201.77126268,0.00028694,14]
[339677976,1727849438047,-488.6699265,0.00028694,14]
[339677977,1727849438058,-460.16881082,0.00028694,14]
[339677978,1727849438067,-1150.61,0.00028694,16]
[339677979,1727849438077,-1150.61,0.00028694,18]
[339677980,1727849438086,-1150.61,0.00028694,20]
[339677981,1727849438095,-976.27880885,0.00028694,22]
[339677982,1727849438107,-174.33119115,0.00028694,22]
[339677983,1727849438116,-1150.61,0.00028694,24]
[339677984,1727849438125,-1150.61,0.00028694,26]
[339677985,1727849438135,-1150.61,0.00028694,28]
[339677986,1727849438144,-1150.61,0.00028694,30]
[339677987,1727849438154,-1150.61,0.00028694,32]
[339677988,1727849438163,-1150.61,0.00028694,34]
[339677989,1727849438172,-1150.61,0.00028694,36]
[339677990,1727849438182,-1150.61,0.00028694,38]
[339677991,1727849438192,-1150.61,0.00028694,40]
[339677992,1727849438202,-1150.61,0.00028694,40]
[339677993,1727849438211,-1150.61,0.00028694,40]
[339677994,1727849438221,-1150.61,0.00028694,40]
[339677995,1727849438231,-1150.61122167,0.00028694,40]
[339677996,1727849438240,-547.59,0.00028775,2]
[339677997,1727849438250,-1000.0,0.00029,120]
[339677998,1727849438259,-1129.0,0.000291,2]
[339677999,1727849438269,-150.0,0.00029416,7]
[339678001,1727849438278,-150.0,0.00029416,7]
[339678002,1727849438287,-150.0,0.00029416,7]
[339678004,1727849438297,-150.0,0.00029416,7]
[339678006,1727849438306,-150.0,0.00029489,7]
[339678008,1727849438316,-573.62,0.00029515,2]
[339678010,1727849438325,-64.09730718,0.00029517,2]
[339678012,1727849438337,-935.90269282,0.00029517,2]
[339678014,1727849438346,-150.0,0.00029562,7]
[339678016,1727849438355,-150.0,0.00029634,7]
[339678018,1727849438365,-150.0,0.00029689,7]
[339678020,1727849438375,-150.0,0.00029707,7]
[339678022,1727849438384,-175.59307111,0.00029718,2]
[339678025,1727849438394,-1018.90778325,0.00029718,2]
[339678028,1727849438406,-1481.09221675,0.00029718,2]
[339678031,1727849438416,-22.84559085,0.00029719,2]
[339678033,1727849438427,-1404.2,0.00029719,2]
[339678060,1727849438841,-1996.53073861,0.00029719,2]
[339678061,1727849438864,-2219.47154531,0.00029719,15]
[339678062,1727849438874,-382.2237,0.0002973,2]
[339678063,1727849438883,-187.60624686,0.00029739,2]
[339678064,1727849438893,-193.58298619,0.00029739,2]
[339678065,1727849438903,-150.0,0.0002978,7]
[339678066,1727849438913,-187.68785555,0.00029798,2]
[339678067,1727849438922,-153.93,0.00029798,2]
[339678068,1727849438932,-1342.43176268,0.000298,30]
[339678069,1727849438941,-1342.22,0.000298,30]
[339678070,1727849438951,-1342.22,0.000298,30]
[339678071,1727849438968,-1342.22,0.000298,30]
[339678072,1727849438977,-1342.22,0.000298,30]
[339678073,1727849438986,-1342.22,0.000298,30]
[339678074,1727849438995,-1342.22,0.000298,30]
[339678075,1727849439005,-1342.22,0.000298,30]
[339678076,1727849439015,-1342.22,0.000298,30]
[339678077,1727849439024,-1342.22,0.000298,30]
[339678078,1727849439034,-1342.22,0.000298,30]
[339678079,1727849439043,-1342.22,0.000298,30]
[339678080,1727849439053,-1342.22,0.000298,30]
[339678081,1727849439062,-1342.22,0.000298,30]
[339678082,1727849439072,-1342.22,0.000298,30]
[339678083,1727849439081,-1342.22,0.000298,15]
[339678084,1727849439090,-1342.22,0.000298,15]
[339678085,1727849439100,-1342.22,0.000298,15]
[339678086,1727849439109,-1342.22,0.000298,30]
[339678087,1727849439118,-1342.22,0.000298,15]
[339678088,1727849439128,-1342.22,0.000298,30]
[339678089,1727849439137,-1342.22,0.000298,30]
[339678090,1727849439147,-1342.22,0.000298,30]
[339678091,1727849439156,-1342.22,0.000298,15]
[339678092,1727849439166,-8621.8751648,0.00029808,4]
[339678093,1727849439179,-1275.15327242,0.00029808,4]
[339678094,1727849439192,-4677.0211687,0.00029808,4]
[339678095,1727849439217,-300.0,0.00029808,4]
[339678096,1727849439236,-518.62206885,0.00029808,4]
[339678097,1727849439248,-1849.01762945,0.00029808,4]
[339678098,1727849439259,-349.87799986,0.00029808,4]
[339678099,1727849439274,-6063.14637846,0.00029808,4]
[339678106,1727849439879,-15061.13174927,0.00029808,15]
[339678107,1727849439891,-299.9801012,0.00029808,15]
[339678108,1727849439902,-639.92034794,0.00029808,15]
[339678109,1727849439915,-3274.40791948,0.00029808,15]
[339678110,1727849439927,-622.3913,0.00029808,15]
[339678111,1727849439938,-7312.89457521,0.00029808,15]
[339678112,1727849439950,-126481.30690273,0.00029808,15]
[339678113,1727849439980,-20626.50304188,0.00029808,15]
[339678114,1727849439991,-1333.56179996,0.00029808,15]
[339678115,1727849440002,-59578.84422178,0.00029808,15]
[339678116,1727849440065,-253.44497898,0.00029808,15]
[339678117,1727849440076,-556.86577081,0.00029808,15]
[339678118,1727849440087,-6315.3454475,0.00029808,15]
[339678119,1727849440099,-27790.47092542,0.00029808,15]
[339678120,1727849440110,-4853.09999989,0.00029808,15]
[339678121,1727849440121,-4925.52846422,0.00029808,15]
[339678122,1727849440133,-688.74524774,0.00029808,15]
[339678123,1727849440144,-1730.84596,0.00029808,15]
[339678124,1727849440155,-5373.59318804,0.00029808,15]
[339678125,1727849440205,-210386.89003494,0.00029808,15]
[339678127,1727849440214,-136259.64808746,0.00029808,4]
[339678129,1727849440224,-26652.3936283,0.00029809,4]
[339678131,1727849440233,-31636.3124058,0.00029809,4]
[339678133,1727849440242,-7325.83231129,0.00029809,4]
[339678135,1727849440253,-3219.60515731,0.00029809,4]
[339678137,1727849440263,-2746.98660305,0.0002982,4]
[339678153,1727849442955,-3177.3396,0.00029709,10]
[339678155,1727849443058,-4534.5704,0.00029709,10]
[339678156,1727849443067,-1897.54753777,0.0002982,4]
[339678157,1727849443078,-931.10322071,0.0002982,4]
[339678158,1727849443196,-1488.2875083,0.0002982,4]
[339678159,1727849443211,-1280.14,0.0002982,4]
[339678160,1727849443222,-14026.95541156,0.0002982,4]
[339678161,1727849443284,-3563.9999998,0.0002982,4]
[339678162,1727849443295,-374.72962927,0.0002982,4]
[339678163,1727849443306,-342.64371784,0.0002982,4]
[339678164,1727849443320,-24721.62098652,0.0002982,4]
[339678165,1727849443331,-977.39069926,0.0002982,4]
[339678166,1727849443342,-927.77,0.0002982,4]
[339678167,1727849443422,-414.48108,0.0002982,4]
[339678168,1727849443433,-698.3526,0.0002982,4]
[339678173,1727849446026,-1000.0,0.00028917,2]
[339678174,1727849446037,-3896.69704002,0.0002982,4]
[339678175,1727849446046,-7500.0,0.0002983,2]
[339678176,1727849446055,-21929.2453663,0.0002983,2]
[339678177,1727849446064,-31064.26066662,0.0002983,4]
[339678178,1727849446076,-404.48230813,0.0002983,4]
[339678179,1727849446098,-164.715166,0.00025985,2]
[339678180,1727849446107,-3418.46687015,0.0002983,4]
[339678181,1727849446118,-1455.39500522,0.0002983,4]
[339678182,1727849446129,-1861.594756,0.0002983,4]
[339678183,1727849446148,-6084.5,0.0002983,4]
[339678184,1727849446213,-9016.08765038,0.0002983,4]
[339678185,1727849446222,-12870.7129714,0.0002983,4]
[339678186,1727849446234,-32116.86348358,0.0002983,4]
[339678187,1727849446253,-7739.61088792,0.0002983,4]
[339678189,1727849446262,-762.0,0.00029839,5]
[339678191,1727849446271,-3276.1614,0.0002984,2]
[339678193,1727849446280,-1222.578,0.0002984,2]
[339678195,1727849446290,-542.5271,0.0002984,2]
[339678197,1727849446299,-14522.09557507,0.0002984,2]
[339678199,1727849446310,-300.0,0.0002984,2]
[339678280,1727849850426,168.69,0.00010959,2]
[339678281,1727850319392,2396.79798484,9e-05,2]
[339678282,1727850425873,355.3546895,0.00022,120]
[339678283,1727850444349,532.29959581,0.000109,2]
[339678284,1727850444579,300.0,0.00022,120]
[339678285,1727850444749,300.0,0.00022,120]
[339678286,1727850444915,382.0,0.00022,120]
[339678287,1727850448275,311.33897848,0.00010899,2]
[339678288,1727850458268,206.6174656,0.000109,2]
[339678289,1727850481378,169.22076499,0.000109,2]
[339678291,1727850530149,175.5930711,0.000109,2]
[339678292,1727850553859,183.29241936,0.000109,2]
[339678293,1727850559102,1568.37465232,0.000109,2]
[339678294,1727850578859,894.48169918,0.000109,2]
[339678300,1727850610130,164.46,0.00010959,2]
[339678313,1727850632094,-154.46,0.0001099,2]
[339678314,1727850632104,-154.46,0.0001099,2]
[339678315,1727850632113,-154.46,0.0001099,2]
[339678316,1727850632122,-154.46,0.0001099,2]
[339678317,1727850632132,-154.46,0.0001099,2]
[339678318,1727850632141,-499.27319209,0.0001099,2]
[339678319,1727850632151,-499.27319209,0.0001099,2]
[339678320,1727850632160,-499.27319209,0.0001099,2]
[339678321,1727850632169,-150.0,0.00010998,2]
[339678322,1727850632179,-177.16601819,0.00010999,2]
[339678323,1727850632190,-96.00745233,0.00010999,2]
[339678324,1727850632266,-403.99254767,0.00010999,2]
[339678325,1727850632276,-500.0,0.00010999,2]
[339678326,1727850632285,-379.40730596,0.00010999,2]
[339678327,1727850632296,-120.59269404,0.00010999,2]
[339678328,1727850632306,-500.0,0.00010999,2]
[339678329,1727850632315,-500.0,0.00010999,2]
[339678330,1727850632324,-186.63023467,0.00010999,2]
[339678331,1727850632334,-500.0,0.00010999,2]
[339678332,1727850632344,-500.0,0.00010999,2]
[339678333,1727850632353,-500.0,0.00010999,2]
[339678334,1727850632367,-500.0,0.00010999,2]
[339678335,1727850632377,-500.0,0.00010999,2]
[339678336,1727850632387,-555.81385138,0.00010999,2]
[339678337,1727850632396,-194.2290262,0.00011,2]
[339678338,1727850632407,-194.2290262,0.00011,2]
[339678339,1727850632416,-194.2290262,0.00011,2]
[339678340,1727850632426,-907.30622607,0.00011,2]
[339678341,1727850632441,-3369.09,0.00011,2]
[339678342,1727850632453,-20586.28592884,0.00011,2]
[339678343,1727850632495,-652.8380239,0.00011,2]
[339678344,1727850632507,-716.18874666,0.00011,2]
[339678345,1727850636808,3523.65849211,0.000109,2]
[339678346,1727850638126,-472.31598137,0.00011,2]
[339678347,1727850638136,-86.80651738,0.00011,2]
[339678348,1727850638215,-329.43033198,0.00011,2]
[339678349,1727850638376,-6607.8,0.00011,2]
[339678372,1727850640184,-408546.20657658,0.00011,2]
[339678374,1727850640195,-8252094.28824867,0.00011,2]
[339678376,1727850640210,-250.0,0.00011,2]
[339678378,1727850640219,-147980.04218742,0.00011,2]
[339678433,1727850644100,-5032.60419654,0.00011,2]
[339678435,1727850646379,-168193.18056621,0.00011,2]
[339678436,1727850656549,320.29,0.00010959,2]
[339678437,1727850661963,200.0,0.000107,3]
[339678438,1727850664054,500.0,0.000108,3]
[339678439,1727850666151,700.0,0.000109,3]
[339678440,1727850725885,212.82205382,0.000109,2]
[339678452,1727850946881,212.82205382,0.000109,2]
[339678453,1727851004306,-150.0,0.00010999,2]
[339678454,1727851004330,-297.03544905,0.00010999,2]
[339678455,1727851004354,-78297.96455095,0.00011,2]
[339678457,1727851079178,4550.69174373,0.000109,2]
[339678458,1727851112026,162.341,0.0001078,2]
[339678459,1727851112802,440.662,0.0001078,2]
[339678460,1727851137791,167.91327863,0.000109,2]
[339678461,1727851249441,164.13,0.00010959,2]
[339678462,1727851406622,500.0,0.0001087,2]
[339678463,1727851407025,500.0,0.00010871,2]
[339678464,1727851407413,500.0,0.00010871,2]
[339678465,1727851675799,3712.4026,0.000109,2]
[339678477,1727851831925,13959.3691,0.000109,2]
[339678478,1727851832280,-158.24649877,0.00010994,2]
[339678479,1727851832289,-469.14680409,0.00010994,2]
[339678480,1727851832299,-150.0,0.00010999,2]
[339678481,1727851832308,-56.4046303,0.00010999,2]
[339678482,1727851832334,-243.5953697,0.00010999,2]
[339678483,1727851832344,-1734.23889683,0.00011,2]
[339678484,1727851832462,-453381.26525331,0.00011,2]
[339678485,1727851832474,-13275.26068969,0.00011,2]
[339678486,1727851832485,-30663.67105415,0.00011,2]
[339678487,1727851832495,-629.9137478,0.00011,2]
[339678488,1727851832510,-722.16573347,0.00011,2]
[339678489,1727851832521,-1965.56307591,0.00011,2]
[339678624,1727851840330,-560.79568424,0.00011,2]
[339678625,1727851840443,-1050.1461,0.00011,2]
[339678637,1727851843595,-500.0,0.00011,2]
[339678649,1727851864634,600.0,0.000107,3]
[339678650,1727851866777,1300.0,0.000108,3]
[339678651,1727851868887,1900.0,0.000109,3]
[339678652,1727851888110,172.89,0.00010959,2]
[339678653,1727851891891,1083.3109,0.000109,2]
[339678654,1727852016950,159.61654035,0.000109,2]
[339678655,1727852148174,921.72,9.906e-05,2]
[339678656,1727852175464,1310.1563,0.000109,2]
[339678657,1727852300945,159.61654035,0.000109,2]
[339678658,1727852312717,451.828,0.0001078,2]
[339678659,1727852312772,162.066,0.0001078,2]
[339678660,1727852343842,1269.53436859,0.000109,2]
[339678661,1727852358366,158.96,0.00010848,2]
[339678662,1727852358573,158.96,0.00010854,2]
[339678663,1727852358792,158.96,0.0001086,2]
[339678664,1727852359000,158.96,0.00010866,2]
[339678665,1727852359226,158.96,0.00010872,2]
[339678666,1727852359822,158.96,0.00010878,2]
[339678667,1727852360024,158.96,0.00010884,2]
[339678668,1727852360221,158.96,0.0001089,2]
[339678669,1727852360421,158.96,0.00010896,2]
[339678670,1727852360627,158.96,0.00010902,2]
[339678671,1727852408817,168.75841491,0.000109,2]
[339678672,1727852415358,7929.89936498,0.000109,2]
[339678673,1727852440092,43881.00357082,0.000109,2]
[339678674,1727852442457,150.0,0.0001002,2]
[339678677,1727852556496,-2006.04533629,0.00010859,2]
[339678678,1727852556517,-18475.95466371,0.000109,2]
[339678679,1727852741553,1937.11,9.388e-05,2]
[339678680,1727852880610,173.63,9.589e-05,2]
[339678689,1727853031746,-400.0,0.000107,3]
[339678690,1727853031755,-900.0,0.000108,3]
[339678691,1727853031765,-150.0,0.00010899,2]
[339678692,1727853031774,-6953.01487636,0.000109,2]
[339678693,1727853031786,-496.3329089,0.000109,2]
[339678694,1727853031834,-3350.40350675,0.000109,2]
[339678695,1727853031846,-818.95666546,0.000109,2]
[339678696,1727853031858,-818.15190406,0.000109,2]
[339678697,1727853031872,-30547.69020394,0.000109,2]
[339678698,1727853031882,-293.9926,0.000109,2]
[339678699,1727853031891,-1400.0,0.000109,3]
[339678700,1727853031901,-7136.9094285,0.000109,2]
[339678701,1727853031911,-159.85984811,0.000109,2]
[339678702,1727853031920,-418.62457068,0.000109,2]
[339678703,1727853031930,-150.16,0.00010959,2]
[339678704,1727853031939,-34826.48576064,0.0001099,2]
[339678705,1727853031949,-322.05,0.00010995,2]
[339678706,1727853031958,-5648.346,0.00011,2]
[339678707,1727853031967,-384481.83366416,0.00011,2]
[339678708,1727853031979,-415.09721781,0.00011,2]
[339678709,1727853031990,-308.807424,0.00011,2]
[339678710,1727853032005,-409.80124548,0.00011,2]
[339678711,1727853032016,-295.4294,0.00011,2]
[339678712,1727853032027,-7682.06488073,0.00011,2]
[339678713,1727853032038,-266.95294903,0.00011,2]
[339678714,1727853032054,-1775.65369597,0.00011,2]
[339678715,1727853032065,-710.26876103,0.00011,2]
[339678716,1727853032077,-269.0000005,0.00011,2]
[339678717,1727853032088,-4328.91690403,0.00011,2]
[339678718,1727853032099,-8357.72706137,0.00011,2]
[339678719,1727853032110,-1438.04137625,0.00011,2]
[339678720,1727853032122,-745.31368766,0.00011,2]
[339678721,1727853037487,-1377055.24908531,0.00011,2]
[339678722,1727853037498,-250.0,0.00011,2]
[339678723,1727853037508,-967.26,0.00011006,2]
[339678724,1727853037518,-952.34,0.00011028,2]
[339678725,1727853037527,-1688.9,0.00011031,2]
[339678726,1727853037537,-837.52,0.00011033,2]
[339678727,1727853037546,-216.6,0.00011056,2]
[339678728,1727853037557,-473.2,0.00011071,2]
[339678729,1727853037567,-1000.0,0.00011123,2]
[339678730,1727853037576,-426.27,0.00011151,2]
[339678731,1727853037586,-172.22,0.00011214,2]
[339678732,1727853037596,-250.0,0.00011228,2]
[339678733,1727853037605,-489.4,0.00011236,2]
[339678734,1727853037615,-23900.0,0.00011263,2]
[339678735,1727853037625,-91918.54,0.00011302,2]
[339678736,1727853037634,-200.0,0.00011342,2]
[339678737,1727853037644,-1619.44,0.00011342,2]
[339678738,1727853037653,-250.0,0.00011362,2]
[339678739,1727853037663,-422.34458308,0.00011366,2]
[339678740,1727853037671,-378.61,0.00011377,2]
[339678741,1727853037680,-250.0,0.00011388,2]
[339678742,1727853037690,-980.78,0.00011417,2]
[339678743,1727853037699,-221.58,0.00011427,2]
[339678744,1727853037708,-598.86,0.00011446,2]
[339678745,1727853037718,-1114.03,0.0001147,2]
[339678746,1727853037727,-3570.85,0.0001158,2]
[339678747,1727853037737,-3886.89,0.0001165,2]
[339678748,1727853037746,-1937.11,0.00011652,2]
[339678749,1727853037756,-170.97,0.00011665,2]
[339678751,1727853037765,-503.59119685,0.00011928,2]
[339678753,1727853037775,-503.38898162,0.00011928,2]
[339678755,1727853037784,-500.0,0.00011991,2]
[339678757,1727853037793,-3886.89,0.00012233,2]
[339678759,1727853037802,-150.0,0.00012301,2]
[339678760,1727853037813,-166.74,0.00012445,2]
[339678762,1727853037822,-167.05,0.00012445,2]
[339678764,1727853037831,-473.2,0.00012455,2]
[339678766,1727853037840,-180.0,0.00012492,2]
[339678768,1727853037849,-199.78,0.000125,2]
[339678770,1727853037859,-1000.0,0.00012514,2]
[339678771,1727853037868,-3886.89,0.00012815,2]
[339678773,1727853037877,-303.82,0.000129,2]
[339678775,1727853037886,-1003.78,0.000129,2]
[339678777,1727853037895,-300.0,0.00013,2]
[339678779,1727853037904,-170.97,0.00013123,2]
[339678781,1727853037913,-1000.0,0.00013361,2]
[339678783,1727853037922,-3886.89,0.00013398,2]
[339678785,1727853037931,-7136.90942847,0.00013483,2]
[339678787,1727853037941,-200.0,0.00013699,2]
[339678788,1727853037950,-196.04602404,0.000137,2]
[339678790,1727853037959,-183.47180156,0.00013739,2]
[339678792,1727853037968,-1407.92635294,0.00013739,2]
[339678794,1727853037978,-111616.10020354,0.000138,2]
[339678796,1727853037992,-304.56000055,0.000138,2]
[339678797,1727853038003,-372137.16793114,0.000138,2]
[339678798,1727853038014,-31253.03540949,0.000138,2]
[339678799,1727853038031,-1000.0,0.000138,2]
[339678800,1727853038062,-561.82106176,0.000138,2]
[339678801,1727853038073,-373.72250086,0.000138,2]
[339678802,1727853038083,-34931.15952277,0.000138,2]
[339678803,1727853038098,-485.7678962,0.000138,2]
[339678804,1727853038109,-400.42456948,0.000138,2]
[339678805,1727853038121,-1443.79352742,0.000138,2]
[339678806,1727853038132,-1370.23840371,0.000138,2]
[339678807,1727853038147,-2944.34240302,0.000138,2]
[339678808,1727853038158,-9101.3781579,0.000138,2]
[339678809,1727853038169,-8693.51986952,0.000138,2]
[339678810,1727853038181,-1381.24087936,0.000138,2]
[339679083,1727853042552,-423.97074858,0.00011,2]
[339679117,1727853042863,-635.21123001,0.00011,2]
[339679118,1727853042874,-21265.68264158,0.00011,2]
[339679119,1727853045859,-2976.88279962,0.00011,2]
[339679120,1727853045870,-4221.14887473,0.00011,2]
[339679121,1727853377671,-614.4964,0.000108,2]
[339679122,1727853377694,-163.16,0.00010959,2]
[339679123,1727853377716,-306.7,0.000129,2]
[339679124,1727853377738,-1006.24,0.000129,2]
[339679125,1727853600984,405.0,0.00022,120]
[339679126,1727853680103,300.38240049,0.00022,120]
[339679127,1727853808730,304.72,0.000129,2]
[339679128,1727853894857,1994.24,0.000129,2]
[339679129,1727853927438,164.46,0.00010959,2]
[339679134,1727854039534,250.0,0.00011,2]
[339679135,1727854040648,300.0,0.00013,2]
[339679143,1727854176893,187.0,0.00022,120]
[339679157,1727854234234,-422.42516304,0.00013666,2]
[339679158,1727854234244,-2593.05079,0.000137,2]
[339679159,1727854234254,-299.45217015,0.00013799,2]
[339679160,1727854234264,-346.04241177,0.00013799,2]
[339679161,1727854234275,-905.87379257,0.00013799,2]
[339679162,1727854234306,-261.61765401,0.00013799,2]
[339679163,1727854234321,-844.63596783,0.00013799,2]
[339679164,1727854234343,-1890.83467298,0.00013799,2]
[339679167,1727854237786,-1042.82955653,0.00013799,2]
[339679168,1727854237798,-1000.0,0.00013799,2]
[339679169,1727854237809,-744.10556021,0.00013799,2]
[339679170,1727854237824,-1764.83999532,0.00013812,2]
[339679338,1727854239830,-3517.96980795,0.00013799,2]
[339679340,1727854239840,-3709.44106078,0.00013812,2]
[339679342,1727854239850,-473.2,0.00013839,2]
[339679344,1727854239859,-1436.19065124,0.00014,2]
[339679346,1727854239870,-13471.95978654,0.00014,2]